bitfinex/quotes_BTCUSD_20250219
["timestamp","ask_amount","ask_price","bid_price","bid_amount"]
[1739970000899,0.17586419,96376.0,96375.0,0.0004255]
[1739970001699,0.1596,96376.0,96375.0,0.0004255]
[1739970003419,0.004,96376.0,96375.0,0.0004255]
[1739970003636,0.15964,96376.0,96375.0,0.0004255]
[1739970004357,0.15764,96376.0,96375.0,0.0004255]
[1739970004591,0.002,96376.0,96375.0,0.0004255]
[1739970005370,0.003,96376.0,96375.0,0.0004255]
[1739970005578,0.15664,96376.0,96375.0,0.0004255]
[1739970006004,0.001,96376.0,96375.0,0.0004255]
[1739970007282,0.20749,96390.0,96375.0,0.0004255]
[1739970007462,0.001,96376.0,96375.0,0.0004255]
[1739970008303,0.207496,96388.0,96375.0,0.0004255]
[1739970008419,0.150851,96394.0,96375.0,0.0004255]
[1739970008420,0.006,96390.0,96375.0,0.0004255]
[1739970008620,0.207492,96389.0,96375.0,0.0004255]
[1739970008869,0.006,96390.0,96375.0,0.0004255]
[1739970009310,0.207492,96389.0,96375.0,0.0004255]
[1739970009750,0.155627,96384.0,96375.0,0.0004255]
[1739970009897,0.155619,96390.0,96377.0,0.155638]
[1739970010092,0.01626213,96382.0,96378.0,0.10250365]
[1739970010292,0.01626213,96382.0,96378.0,0.10150365]
[1739970010703,0.01626213,96382.0,96381.0,0.155632]
[1739970011102,0.01626213,96382.0,96381.0,0.25813565]
[1739970011276,0.01626213,96382.0,96381.0,0.10250365]
[1739970011683,0.01626213,96382.0,96381.0,0.38407307]
[1739970011886,0.01626213,96382.0,96381.0,0.38303565]
[1739970012565,0.000851,96394.0,96393.0,0.283412]
[1739970012771,0.000851,96394.0,96393.0,0.38491565]
[1739970013359,0.000851,96394.0,96393.0,0.38391565]
[1739970014637,0.000851,96394.0,96393.0,0.38691565]
[1739970015049,0.000851,96394.0,96393.0,0.38391565]
[1739970015249,0.000851,96394.0,96393.0,0.23030365]
[1739970015398,0.000851,96394.0,96393.0,0.38591565]
[1739970015806,0.001851,96394.0,96393.0,0.38791565]
[1739970016039,0.001851,96394.0,96393.0,0.38591565]
[1739970016182,0.000851,96394.0,96393.0,0.38591565]
[1739970016383,0.002851,96394.0,96393.0,0.39191565]
[1739970016789,0.001851,96394.0,96393.0,0.38891565]
[1739970017237,0.002851,96394.0,96393.0,0.39191565]
[1739970017694,0.002851,96394.0,96393.0,0.4114679]
[1739970018010,0.001851,96394.0,96393.0,0.4084679]
[1739970018182,0.002851,96394.0,96393.0,0.4114679]
[1739970018605,0.001851,96394.0,96393.0,0.4084679]
[1739970018992,0.002851,96394.0,96393.0,0.4104679]
[1739970022137,0.002851,96394.0,96393.0,0.5604679]
[1739970023326,0.002851,96394.0,96393.0,0.4104679]
[1739970024636,0.002851,96394.0,96393.0,0.1749559]
[1739970024852,0.002851,96394.0,96393.0,0.1270559]
[1739970025260,0.158462,96394.0,96393.0,0.01663225]
[1739970025464,0.001851,96394.0,96393.0,0.01363225]
[1739970025668,0.000851,96394.0,96391.0,0.00792]
[1739970025868,0.001851,96394.0,96393.0,0.002]
[1739970026074,0.002851,96394.0,96393.0,0.004]
[1739970026296,0.001851,96394.0,96393.0,0.01363225]
[1739970026449,0.001851,96394.0,96393.0,0.002]
[1739970026656,0.01910951,96394.0,96393.0,0.01563225]
[1739970026854,0.01910951,96394.0,96393.0,0.004]
[1739970027053,0.01910951,96394.0,96393.0,0.01563225]
[1739970027236,0.01910951,96394.0,96393.0,0.004]
[1739970027638,0.01910951,96394.0,96393.0,0.01563225]
[1739970027898,0.207452,96408.0,96393.0,0.01563225]
[1739970028103,0.0004,96394.0,96393.0,0.01563225]
[1739970028303,0.0004,96394.0,96393.0,0.004]
[1739970028522,0.0004,96394.0,96393.0,0.01563225]
[1739970028713,0.0004,96394.0,96391.0,0.10250365]
[1739970028911,0.0004,96394.0,96393.0,0.01163225]
[1739970029111,0.0004,96394.0,96393.0,0.003]
[1739970029322,0.0004,96394.0,96393.0,0.01263225]
[1739970029751,0.0014,96394.0,96393.0,0.01463225]
[1739970029932,0.281011,96394.0,96393.0,0.003]
[1739970030128,0.304011,96394.0,96393.0,0.003]
[1739970030362,0.304011,96394.0,96393.0,0.002]
[1739970030519,0.305011,96394.0,96393.0,0.002]
[1739970031738,0.1244,96394.0,96378.0,0.5164]
[1739970031945,0.207483,96393.0,96378.0,0.5164]
[1739970032124,0.155634,96380.0,96379.0,0.01166897]
[1739970032771,0.17414253,96380.0,96379.0,0.01166897]
[1739970032999,0.155635,96379.0,96378.0,0.5164]
[1739970033988,0.01626196,96380.0,96378.0,0.5164]
[1739970034197,0.155635,96379.0,96378.0,0.5164]
[1739970034402,0.03483756,96380.0,96378.0,0.5164]
[1739970034604,0.155635,96379.0,96378.0,0.5164]
[1739970034839,0.03483756,96380.0,96378.0,0.5164]
[1739970035195,0.155635,96379.0,96378.0,0.5184]
[1739970035394,0.155635,96379.0,96378.0,0.5204]
[1739970035818,0.155635,96379.0,96378.0,0.5184]
[1739970036023,0.155635,96379.0,96378.0,0.5164]
[1739970036274,0.155635,96379.0,96378.0,0.5204]
[1739970036478,0.155635,96379.0,96378.0,0.53207159]
[1739970036813,0.155635,96379.0,96378.0,0.52807159]
[1739970036940,0.155635,96379.0,96378.0,0.53207159]
[1739970037140,0.19047156,96380.0,96378.0,0.53207159]
[1739970037377,0.19047256,96380.0,96378.0,0.53207159]
[1739970037580,0.155635,96379.0,96378.0,0.53207159]
[1739970038159,0.155635,96379.0,96378.0,0.52807159]
[1739970038574,0.155635,96379.0,96378.0,0.53207159]
[1739970038774,0.03483756,96380.0,96378.0,0.53007159]
[1739970038937,0.155635,96379.0,96378.0,0.52807159]
[1739970039138,0.155635,96379.0,96378.0,0.53007159]
[1739970039512,0.155635,96379.0,96378.0,0.53207159]
[1739970039915,0.0185756,96380.0,96378.0,0.53207159]
[1739970040102,0.155633,96381.0,96378.0,0.53207159]
[1739970040426,0.155634,96380.0,96378.0,0.53207159]
[1739970040622,0.207467,96401.0,96378.0,0.53207159]
[1739970040785,0.000851,96414.0,96379.0,0.10250365]
[1739970040786,0.0033455,96394.0,96379.0,0.10250365]
[1739970040979,0.02222755,96394.0,96380.0,0.00103746]
[1739970041193,0.02222755,96394.0,96391.0,0.155615]
[1739970041194,0.0033455,96394.0,96391.0,0.155615]
[1739970041533,0.0033455,96394.0,96391.0,0.10250365]
[1739970041695,0.0033455,96394.0,96392.0,0.01163487]
[1739970041890,0.0033455,96394.0,96393.0,0.155612]
[1739970042375,0.0033455,96394.0,96393.0,0.16724425]
[1739970042814,0.0033455,96394.0,96393.0,0.27078523]
[1739970043015,0.0033455,96394.0,96393.0,0.2697479]
[1739970043346,0.0033455,96394.0,96393.0,0.2707479]
[1739970043756,0.0033455,96394.0,96393.0,0.2697479]
[1739970044782,0.0033455,96394.0,96393.0,0.2717479]
[1739970044987,0.0033455,96394.0,96393.0,0.2747479]
[1739970045332,0.0033455,96394.0,96393.0,0.2727479]
[1739970045620,0.0033455,96394.0,96393.0,0.2757479]
[1739970045816,0.0033455,96394.0,96393.0,0.3232479]
[1739970047820,0.0033455,96394.0,96393.0,0.1280959]
[1739970048231,0.0033455,96394.0,96393.0,0.2837079]
[1739970048813,0.0033455,96394.0,96393.0,0.1220959]
[1739970049021,0.0033455,96394.0,96393.0,0.1240959]
[1739970049225,0.0033455,96394.0,96393.0,0.2817079]
[1739970049428,0.0033455,96394.0,96393.0,0.2797079]
[1739970049577,0.0033455,96394.0,96393.0,0.2817079]
[1739970049993,0.0033055,96394.0,96393.0,0.2817079]
[1739970050403,0.0033055,96394.0,96393.0,0.2797079]
[1739970050588,0.0033055,96394.0,96393.0,0.2777079]
[1739970050791,0.0033055,96394.0,96393.0,0.2807079]
[1739970051822,0.0033055,96394.0,96393.0,0.2837079]
[1739970054292,0.0033055,96394.0,96393.0,0.2807079]
[1739970054575,0.0033055,96394.0,96393.0,0.2837079]
[1739970055050,0.0033055,96394.0,96393.0,0.2727479]
[1739970055260,0.0033055,96394.0,96393.0,0.2837079]
[1739970057776,0.0033055,96394.0,96393.0,0.2845587]
[1739970061086,0.00320176,96394.0,96393.0,0.2845587]
[1739970063869,0.00320176,96394.0,96393.0,0.3647587]
[1739970064840,0.00320176,96394.0,96393.0,0.4139587]
[1739970065808,0.00320176,96394.0,96393.0,0.45118952]
[1739970066005,0.00320176,96394.0,96393.0,0.44818952]
[1739970066321,0.00420176,96394.0,96393.0,0.45018952]
[1739970066814,0.00520176,96394.0,96393.0,0.45618952]
[1739970070188,0.00520176,96394.0,96393.0,0.46397064]
[1739970071204,0.00520176,96394.0,96393.0,0.50283021]
[1739970071803,0.00520176,96394.0,96393.0,0.82743021]
[1739970072212,0.000851,96414.0,96393.0,0.82743021]
[1739970072213,0.19684576,96422.0,96393.0,0.67181821]
[1739970072421,0.15557,96420.0,96407.0,0.15559]
[1739970072628,0.0162578,96418.0,96408.0,0.10250365]
[1739970072776,0.15557,96420.0,96408.0,0.12201657]
[1739970072988,0.17416416,96420.0,96408.0,0.12201657]
[1739970073369,0.01859416,96420.0,96408.0,0.12201657]
[1739970073575,0.20084576,96422.0,96408.0,0.12201657]
[1739970073784,0.155569,96421.0,96408.0,0.12201657]
[1739970074019,0.15557,96420.0,96408.0,0.11042365]
[1739970074446,0.15957,96420.0,96409.0,0.01159029]
[1739970074652,0.15957,96420.0,96410.0,0.10250365]
[1739970074855,0.004,96420.0,96411.0,0.01158505]
[1739970075052,0.004,96420.0,96411.0,0.1140887]
[1739970075495,0.007,96420.0,96411.0,0.1140887]
[1739970076566,0.003,96420.0,96411.0,0.1140887]
[1739970076709,0.006,96420.0,96411.0,0.1140887]
[1739970076907,0.01625636,96418.0,96411.0,0.1140887]
[1739970077918,0.01625636,96418.0,96412.0,0.01946661]
[1739970078332,0.01725636,96418.0,96413.0,0.01157981]
[1739970078712,0.01725636,96418.0,96413.0,0.10250365]
[1739970078917,0.01825636,96418.0,96414.0,0.01157719]
[1739970079119,0.01825636,96418.0,96414.0,0.16715619]
[1739970079329,0.01825636,96418.0,96414.0,0.01157719]
[1739970079695,0.01725636,96418.0,96414.0,0.01157719]
[1739970080047,0.01825636,96418.0,96414.0,0.01157719]
[1739970080246,0.01725636,96418.0,96414.0,0.01157719]
[1739970080662,0.01625636,96418.0,96414.0,0.01157719]
[1739970080932,0.01625636,96418.0,96414.0,0.01257719]
[1739970081238,0.01625636,96418.0,96414.0,0.01357719]
[1739970083666,0.01625636,96418.0,96414.0,0.01257719]
[1739970083824,0.01625636,96418.0,96414.0,0.01157719]
[1739970084203,0.01625636,96418.0,96414.0,0.01257719]
[1739970084778,0.155575,96417.0,96414.0,0.01257719]
[1739970084972,0.01625636,96418.0,96414.0,0.01257719]
[1739970085202,0.01625636,96418.0,96414.0,0.001]
[1739970086132,0.01625636,96418.0,96415.0,0.01157456]
[1739970087313,0.01625636,96418.0,96415.0,0.001]
[1739970087675,0.01820111,96421.0,96416.0,0.01157194]
[1739970087874,0.0004253,96422.0,96415.0,0.002]
[1739970088103,0.155571,96419.0,96415.0,0.002]
[1739970088612,0.0004253,96422.0,96415.0,0.002]
[1739970088824,0.15557,96420.0,96415.0,0.002]
[1739970089076,0.15557,96420.0,96415.0,0.001]
[1739970089270,0.01820837,96421.0,96415.0,0.001]
[1739970089474,0.001,96421.0,96416.0,0.01157194]
[1739970089684,0.001,96421.0,96411.0,0.10335425]
[1739970089893,0.02020548,96422.0,96411.0,0.10335425]
[1739970089894,0.02020548,96422.0,96413.0,0.155579]
[1739970090113,0.02020548,96422.0,96414.0,0.11408084]
[1739970090334,0.001,96420.0,96414.0,0.11408084]
[1739970090696,0.001,96420.0,96414.0,0.28913276]
[1739970090848,0.03546128,96422.0,96414.0,0.28913276]
[1739970091730,0.03546128,96422.0,96415.0,0.01947392]
[1739970091917,0.03546128,96422.0,96416.0,0.10250365]
[1739970092145,0.03646128,96422.0,96417.0,0.01156932]
[1739970092679,0.03546128,96422.0,96417.0,0.01156932]
[1739970092910,0.03646128,96422.0,96417.0,0.01156932]
[1739970093320,0.03546128,96422.0,96418.0,0.01947392]
[1739970093525,0.03546128,96422.0,96419.0,0.01156408]
[1739970093750,0.03646128,96422.0,96419.0,0.01156408]
[1739970094543,0.03646128,96422.0,96418.0,0.01947392]
[1739970094940,0.03646128,96422.0,96419.0,0.01156408]
[1739970095149,0.03546128,96422.0,96419.0,0.01156408]
[1739970095361,0.03546128,96422.0,96420.0,0.01947392]
[1739970095719,0.03646128,96422.0,96420.0,0.01947392]
[1739970096103,0.03546128,96422.0,96420.0,0.01947392]
[1739970096608,0.03546128,96422.0,96417.0,0.0008508]
[1739970096804,0.03646128,96422.0,96417.0,0.0008508]
[1739970096999,0.03646128,96422.0,96418.0,0.0115667]
[1739970098189,0.03546128,96422.0,96418.0,0.0115667]
[1739970098594,0.03646128,96422.0,96418.0,0.0115667]
[1739970098994,0.03546128,96422.0,96418.0,0.0115667]
[1739970099426,0.03646128,96422.0,96418.0,0.0115667]
[1739970099635,0.02020548,96422.0,96417.0,0.0008508]
[1739970100900,0.08,96430.0,96417.0,0.0008508]
[1739970101105,0.155561,96426.0,96417.0,0.0008508]
[1739970101502,0.155561,96425.0,96417.0,0.0008508]
[1739970101845,0.001,96422.0,96417.0,0.0008508]
[1739970102207,0.001,96422.0,96418.0,0.01946062]
[1739970102411,0.155563,96424.0,96418.0,0.01946062]
[1739970102595,0.01625542,96422.0,96418.0,0.01946062]
[1739970103464,0.155561,96425.0,96418.0,0.01946062]
[1739970103752,0.155561,96425.0,96419.0,0.01946062]
[1739970103753,0.001,96424.0,96419.0,0.01946062]
[1739970104344,0.156562,96424.0,96419.0,0.01946062]
[1739970104496,0.15556,96426.0,96419.0,0.01946062]
[1739970104697,0.001,96422.0,96419.0,0.01946062]
[1739970104895,0.001,96422.0,96420.0,0.01156146]
[1739970105141,0.001,96422.0,96417.0,0.0008508]
[1739970105316,0.155562,96425.0,96421.0,0.01155884]
[1739970105557,0.156563,96424.0,96417.0,0.0008508]
[1739970105761,0.001,96424.0,96417.0,0.0008508]
[1739970105963,0.155561,96425.0,96418.0,0.0115667]
[1739970106199,0.155563,96424.0,96418.0,0.0115667]
[1739970106358,0.001,96422.0,96417.0,0.0008508]
[1739970106555,0.001,96422.0,96419.0,0.01156408]
[1739970106760,0.01625579,96421.0,96418.0,0.0115667]
[1739970107074,0.01625579,96421.0,96420.0,0.01156146]
[1739970107281,0.01625579,96421.0,96419.0,0.01156408]
[1739970107635,0.01625579,96421.0,96420.0,0.01156146]
[1739970109326,0.01625579,96421.0,96417.0,0.0008508]
[1739970109529,0.01625579,96421.0,96418.0,0.0115667]
[1739970110793,0.01621579,96421.0,96418.0,0.0115667]
[1739970111025,0.01621579,96421.0,96419.0,0.10250365]
[1739970111227,0.01621579,96421.0,96419.0,0.42710365]
[1739970111426,0.01621579,96421.0,96420.0,0.01156146]
[1739970111712,0.01621579,96421.0,96420.0,0.11406511]
[1739970111963,0.01621579,96421.0,96420.0,0.18946511]
[1739970112558,0.01621579,96421.0,96420.0,0.24006416]
[1739970113523,0.0004254,96424.0,96420.0,0.24006416]
[1739970113725,0.0004254,96424.0,96421.0,0.10250365]
[1739970114107,0.0004254,96424.0,96422.0,0.01155622]
[1739970114307,0.0004254,96424.0,96423.0,0.10250365]
[1739970114626,0.0004254,96424.0,96423.0,0.11405724]
[1739970115227,0.0004254,96424.0,96423.0,0.13351841]
[1739970115875,0.0004254,96424.0,96423.0,0.13451841]
[1739970116644,0.0004254,96424.0,96423.0,0.13551841]
[1739970118345,0.0004254,96424.0,96423.0,0.29108241]
[1739970120364,0.0004254,96424.0,96423.0,0.61568241]
[1739970120750,0.0004254,96424.0,96423.0,0.61468241]
[1739970120945,0.0004254,96424.0,96423.0,0.61368241]
[1739970121145,0.0004254,96424.0,96423.0,0.61768241]
[1739970121345,0.0004254,96424.0,96423.0,0.46211841]
[1739970122231,0.0004254,96424.0,96423.0,0.46428659]
[1739970122429,0.0014254,96424.0,96423.0,0.47128659]
[1739970123002,0.0024254,96424.0,96423.0,0.47128659]
[1739970123418,0.0024254,96424.0,96423.0,0.47628659]
[1739970124038,0.0014254,96424.0,96423.0,0.46928659]
[1739970124177,0.0014254,96424.0,96423.0,0.47428659]
[1739970124375,0.0014254,96424.0,96423.0,0.46811841]
[1739970126990,0.0014254,96424.0,96423.0,0.44865724]
[1739970127196,0.1569874,96424.0,96423.0,0.34615359]
[1739970127761,0.0014254,96424.0,96423.0,0.34615359]
[1739970130155,0.08,96430.0,96423.0,0.34615359]
[1739970130559,0.155561,96425.0,96423.0,0.34615359]
[1739970130898,0.17933989,96427.0,96423.0,0.34615359]
[1739970131055,0.17933989,96427.0,96423.0,0.34115359]
[1739970131259,0.155559,96426.0,96423.0,0.01455359]
[1739970131481,0.155559,96426.0,96423.0,0.01755359]
[1739970131724,0.155559,96426.0,96423.0,0.006]
[1739970131927,0.155559,96426.0,96423.0,0.003]
[1739970132895,0.155557,96428.0,96423.0,0.003]
[1739970133241,0.0795,96430.0,96421.0,0.0078]
[1739970133423,0.0795,96430.0,96423.0,0.004]
[1739970133642,0.0795,96430.0,96423.0,0.008]
[1739970133762,0.0004254,96427.0,96421.0,0.0086508]
[1739970134191,0.02414111,96427.0,96423.0,0.008]
[1739970134388,0.155559,96426.0,96423.0,0.004]
[1739970134596,0.15556,96426.0,96421.0,0.0086508]
[1739970134955,0.17984677,96427.0,96423.0,0.003]
[1739970135108,0.155559,96426.0,96423.0,0.003]
[1739970135515,0.15556,96426.0,96423.0,0.003]
[1739970135716,0.15556,96426.0,96421.0,0.0126508]
[1739970136135,0.02428777,96427.0,96421.0,0.0126508]
[1739970136337,0.02428777,96427.0,96421.0,0.0086508]
[1739970136521,0.155559,96426.0,96421.0,0.0086508]
[1739970136698,0.155559,96426.0,96421.0,0.0126508]
[1739970137181,0.17984577,96427.0,96423.0,0.004]
[1739970137376,0.17984577,96427.0,96421.0,0.0086508]
[1739970137577,0.17984577,96427.0,96421.0,0.0166508]
[1739970137736,0.02428777,96427.0,96421.0,0.0166508]
[1739970137936,0.02428777,96427.0,96421.0,0.0086508]
[1739970138350,0.17984677,96427.0,96421.0,0.0166508]
[1739970138552,0.02428777,96427.0,96421.0,0.0126508]
[1739970138940,0.02428777,96427.0,96422.0,0.01155622]
[1739970139143,0.17984577,96427.0,96421.0,0.0166508]
[1739970139606,0.02428777,96427.0,96421.0,0.0126508]
[1739970139819,0.02428777,96427.0,96421.0,0.0166508]
[1739970140611,0.02428777,96427.0,96422.0,0.01155622]
[1739970141056,0.02428777,96427.0,96421.0,0.0166508]
[1739970141289,0.02428777,96427.0,96423.0,0.01155359]
[1739970141437,0.02428777,96427.0,96421.0,0.0166508]
[1739970141649,0.02428777,96427.0,96424.0,0.01155097]
[1739970141855,0.02428777,96427.0,96421.0,0.0126508]
[1739970142069,0.02428777,96427.0,96422.0,0.004]
[1739970142257,0.02428777,96427.0,96422.0,0.01555622]
[1739970142465,0.02428777,96427.0,96421.0,0.0126508]
[1739970142803,0.02428777,96427.0,96422.0,0.01155622]
[1739970142981,0.02428777,96427.0,96422.0,0.01555622]
[1739970143183,0.02428777,96427.0,96422.0,0.004]
[1739970143401,0.02428777,96427.0,96423.0,0.01155359]
[1739970143612,0.02428777,96427.0,96421.0,0.0126508]
[1739970143964,0.02428777,96427.0,96421.0,0.0166508]
[1739970144165,0.02428777,96427.0,96422.0,0.01155622]
[1739970144708,0.02428777,96427.0,96423.0,0.004]
[1739970144863,0.02428777,96427.0,96423.0,0.10650365]
[1739970145067,0.02428777,96427.0,96424.0,0.09435097]
[1739970145670,0.02428777,96427.0,96425.0,0.01946569]
[1739970146101,0.02428777,96427.0,96426.0,0.01154573]
[1739970146300,0.02428777,96427.0,96425.0,0.01946569]
[1739970146502,0.02428777,96427.0,96426.0,0.01154573]
[1739970146720,0.0004254,96427.0,96425.0,0.01946569]
[1739970146908,0.0004254,96427.0,96426.0,0.01154573]
[1739970147102,0.0004254,96427.0,96425.0,0.02346569]
[1739970147306,0.0004254,96427.0,96426.0,0.03101142]
[1739970148350,0.0004254,96427.0,96426.0,0.03501142]
[1739970149201,0.0004254,96427.0,96426.0,0.03901142]
[1739970157270,0.0004254,96427.0,96426.0,0.19457042]
[1739970158479,0.0004254,96427.0,96426.0,0.03986202]
[1739970161545,0.14350277,96474.0,96426.0,0.03986202]
[1739970161750,0.01625372,96435.0,96426.0,0.03986202]
[1739970162555,0.01625372,96435.0,96426.0,0.03586202]
[1739970162749,0.01625372,96435.0,96427.0,0.01946569]
[1739970162913,0.01625372,96435.0,96428.0,0.01154049]
[1739970164025,0.02839653,96437.0,96428.0,0.01154049]
[1739970164226,0.0008512,96441.0,96428.0,0.01154049]
[1739970164579,0.155537,96440.0,96428.0,0.01154049]
[1739970165280,0.2082322,96441.0,96428.0,0.01254049]
[1739970165484,0.2082322,96441.0,96428.0,0.01154049]
[1739970165714,0.15554,96438.0,96428.0,0.01254049]
[1739970166312,0.15554,96438.0,96428.0,0.01154049]
[1739970166721,0.15554,96438.0,96426.0,0.0008506]
[1739970167016,0.15554,96438.0,96427.0,0.01154311]
[1739970167219,0.23731544,96441.0,96427.0,0.01154311]
[1739970167376,0.02993444,96441.0,96427.0,0.01154311]
[1739970167575,0.155539,96439.0,96427.0,0.01154311]
[1739970168182,0.15554,96438.0,96427.0,0.01154311]
[1739970168582,0.01625358,96437.0,96427.0,0.01154311]
[1739970169698,0.17179458,96437.0,96427.0,0.01154311]
[1739970170412,0.155544,96436.0,96427.0,0.01154311]
[1739970170716,0.155544,96436.0,96427.0,0.01339371]
[1739970171115,0.01625358,96437.0,96427.0,0.01339371]
[1739970171336,0.17179558,96437.0,96427.0,0.01339371]
[1739970171543,0.01625358,96437.0,96427.0,0.01239371]
[1739970171743,0.155556,96428.0,96427.0,0.01339371]
[1739970171942,0.155556,96428.0,96427.0,0.01439371]
[1739970172143,0.155556,96428.0,96427.0,0.0028506]
[1739970172524,0.155556,96428.0,96427.0,0.0018506]
[1739970173484,0.155556,96428.0,96427.0,0.0008506]
[1739970173609,0.155556,96428.0,96427.0,0.0048506]
[1739970174462,0.023,96435.0,96427.0,0.0058506]
[1739970174710,0.155556,96428.0,96427.0,0.0048506]
[1739970175108,0.155556,96428.0,96427.0,0.0088506]
[1739970175318,0.155556,96428.0,96427.0,0.0008506]
[1739970175742,0.155556,96428.0,96427.0,0.0018506]
[1739970176087,0.155556,96428.0,96427.0,0.0008506]
[1739970176537,0.155556,96428.0,96427.0,0.0048506]
[1739970176732,0.155556,96428.0,96427.0,0.0058506]
[1739970177138,0.155556,96428.0,96427.0,0.0048506]
[1739970177378,0.155556,96428.0,96427.0,0.0088506]
[1739970185244,0.2074,96432.0,96427.0,0.0088506]
[1739970185469,0.155556,96428.0,96427.0,0.0088506]
[1739970185861,0.023,96435.0,96427.0,0.0088506]
[1739970186017,0.155556,96428.0,96427.0,0.0048506]
[1739970187060,0.155556,96428.0,96427.0,0.0008506]
[1739970187481,0.155556,96428.0,96427.0,0.0028506]
[1739970187767,0.155556,96428.0,96427.0,0.0048506]
[1739970187974,0.155556,96428.0,96427.0,0.0028506]
[1739970188351,0.155556,96428.0,96427.0,0.0048506]
[1739970188730,0.155556,96428.0,96427.0,0.0088506]
[1739970192805,0.17181045,96429.0,96427.0,0.0088506]
[1739970193010,0.01625445,96429.0,96427.0,0.0088506]
[1739970193941,0.01625445,96429.0,96428.0,0.34015965]
[1739970194148,0.01625445,96429.0,96428.0,0.35186766]
[1739970195153,0.01725445,96429.0,96428.0,0.35786766]
[1739970195341,0.01825445,96429.0,96428.0,0.36386766]
[1739970201513,0.01825445,96429.0,96428.0,0.36386766]
[1739970202318,0.002,96429.0,96428.0,0.36386766]
[1739970202727,0.002,96429.0,96428.0,0.68846766]
[1739970207868,0.002,96429.0,96428.0,0.73366766]
[1739970219298,0.002,96429.0,96428.0,0.73451846]
[1739970221011,0.002,96429.0,96428.0,0.88451846]
[1739970222159,0.0004253,96437.0,96429.0,0.15]
[1739970222379,0.0004253,96437.0,96436.0,0.231043]
[1739970222507,0.0004253,96437.0,96436.0,0.33354665]
[1739970222713,0.0004253,96437.0,96436.0,0.34527818]
[1739970223468,0.0004253,96437.0,96436.0,0.81987818]
[1739970223821,0.0004253,96437.0,96436.0,0.66987818]
[1739970224327,0.0004253,96437.0,96436.0,0.67487818]
[1739970225165,0.0004253,96437.0,96436.0,0.67987818]
[1739970226863,0.0004253,96437.0,96436.0,0.44883518]
[1739970227057,0.0004253,96437.0,96436.0,0.60437818]
[1739970227695,0.0004253,96437.0,96436.0,0.44883518]
[1739970227897,0.0004253,96437.0,96436.0,0.60437818]
[1739970228431,0.0004253,96437.0,96436.0,0.44883518]
[1739970230480,0.0004253,96437.0,96436.0,0.60437818]
[1739970231069,0.0004253,96437.0,96436.0,0.44968598]
[1739970231472,0.0004253,96437.0,96436.0,0.60522898]
[1739970231902,0.155519,96451.0,96436.0,0.44968598]
[1739970232094,0.207354,96454.0,96437.0,0.10250365]
[1739970232433,0.155518,96452.0,96437.0,0.10250365]
[1739970232648,0.155518,96452.0,96438.0,0.01172629]
[1739970232851,0.19230768,96452.0,96439.0,0.10250365]
[1739970233206,0.19230768,96452.0,96440.0,0.01172105]
[1739970233405,0.19230768,96452.0,96440.0,0.1142247]
[1739970233609,0.03678968,96452.0,96440.0,0.1142247]
[1739970233793,0.155516,96453.0,96440.0,0.1142247]
[1739970233989,0.20735,96455.0,96440.0,0.1142247]
[1739970234188,0.155518,96452.0,96440.0,0.1142247]
[1739970234400,0.20735,96455.0,96440.0,0.1142247]
[1739970234797,0.155516,96453.0,96440.0,0.1142247]
[1739970236381,0.155516,96453.0,96440.0,0.1152247]
[1739970236580,0.24439928,96455.0,96440.0,0.1142247]
[1739970236794,0.19256328,96455.0,96440.0,0.1142247]
[1739970236969,0.155514,96455.0,96440.0,0.1142247]
[1739970237167,0.155515,96454.0,96440.0,0.1142247]
[1739970237746,0.03627105,96455.0,96440.0,0.1142247]
[1739970237956,0.155513,96455.0,96440.0,0.1142247]
[1739970238171,0.001,96455.0,96440.0,0.1142247]
[1739970238604,0.155514,96454.0,96440.0,0.1142247]
[1739970239912,0.207348,96457.0,96440.0,0.1142247]
[1739970240121,0.155513,96455.0,96440.0,0.1142247]
[1739970240488,0.03708564,96457.0,96440.0,0.1142247]
[1739970240680,0.0483,96459.0,96440.0,0.1142247]
[1739970241128,0.155509,96457.0,96440.0,0.2697607]
[1739970241520,0.156509,96457.0,96440.0,0.2697607]
[1739970242130,0.19229276,96457.0,96440.0,0.2697607]
[1739970242312,0.03678376,96457.0,96440.0,0.1142247]
[1739970242723,0.155512,96456.0,96440.0,0.1142247]
[1739970243310,0.03678376,96457.0,96440.0,0.2697607]
[1739970243486,0.19229276,96457.0,96440.0,0.1142247]
[1739970243689,0.155512,96456.0,96440.0,0.1142247]
[1739970244432,0.03678376,96457.0,96440.0,0.1142247]
[1739970244689,0.03678376,96457.0,96440.0,0.2697597]
[1739970244805,0.19229376,96457.0,96440.0,0.2697597]
[1739970245010,0.19129376,96457.0,96440.0,0.2697597]
[1739970245229,0.19129376,96457.0,96440.0,0.1142247]
[1739970245433,0.001,96456.0,96441.0,0.0811]
[1739970245855,0.155511,96456.0,96442.0,0.01171581]
[1739970246806,0.155508,96458.0,96442.0,0.0001316]
[1739970247000,0.001,96456.0,96442.0,0.00978249]
[1739970248266,0.0360165,96458.0,96442.0,0.00978249]
[1739970248475,0.0004254,96459.0,96442.0,0.00978249]
[1739970248672,0.15551,96457.0,96442.0,0.00978249]
[1739970249943,0.155511,96456.0,96442.0,0.00978249]
[1739970250069,0.2087684,96459.0,96443.0,0.10250365]
[1739970250070,0.036874,96458.0,96443.0,0.10250365]
[1739970250272,0.0004254,96459.0,96443.0,0.11081938]
[1739970250498,0.1559324,96459.0,96443.0,0.11081938]
[1739970250701,0.0004254,96459.0,96444.0,0.1269]
[1739970250912,0.0004254,96459.0,96444.0,0.13521311]
[1739970251317,0.1559314,96459.0,96444.0,0.13521311]
[1739970251488,0.0004254,96459.0,96444.0,0.13521311]
[1739970251690,0.001,96457.0,96446.0,0.155525]
[1739970252075,0.0004254,96459.0,96456.0,0.233811]
[1739970252246,0.0004254,96459.0,96457.0,0.10250365]
[1739970252445,0.0014254,96459.0,96457.0,0.10250365]
[1739970252651,0.0014254,96459.0,96458.0,0.00827644]
[1739970252850,0.0004254,96459.0,96458.0,0.00827644]
[1739970254239,0.0004254,96459.0,96458.0,0.01027644]
[1739970254963,0.0004254,96459.0,96458.0,0.01227644]
[1739970255540,0.03715394,96459.0,96458.0,0.01227644]
[1739970265980,0.0004254,96459.0,96458.0,0.39748809]
[1739970266266,0.0004254,96459.0,96458.0,0.24198009]
[1739970267230,0.0004254,96459.0,96458.0,0.23998009]
[1739970269395,0.0004254,96459.0,96458.0,0.24198009]
[1739970275256,0.000851,96474.0,96458.0,0.24198009]
[1739970275498,0.155487,96471.0,96459.0,0.10250365]
[1739970275702,0.155485,96472.0,96459.0,0.10250365]
[1739970275872,0.155485,96472.0,96460.0,0.00880787]